[Event "SVK ECo-C Extraliga 2021-22"]
[Site "Slovakia"]
[Date "2022.06.11"]
[Round "10"]
[White "Nagy, Gabor"]
[Black "Istona, Martin"]
[Result "1-0"]
[ECO "E51"]
[WhiteElo "2503"]
[BlackElo "2216"]
[Annotator "TA"]
[PlyCount "47"]
[EventDate "2021.10.21"]
[EventType "team-tourn"]
[EventCountry "SVK"]
[SourceTitle "playchess.com"]
[Source "ChessBase"]
[SourceQuality "1"]
[TimeControl "40/5400+30:1800+30"]

{[%evp 13,47,-2,2,-1,22,11,21,15,19,18,7,17,17,0,14,26,54,34,80,85,122,130,201,200,179,199,238,202,206,206,218,193,182,184,262,231]} 1. d4 {[%emt 0:00:08]} Nf6 {[%emt 0:04:08]} 2. c4 {[%emt 0:00:32]} e6 {[%emt 0:00:32]} 3. Nc3 {[%emt 0:01:02]} d5 {[%emt 0:00:23]} 4. Nf3 {[%emt 0:00:32]} Bb4 {[%emt 0:01:58]} 5. e3 {[%emt 0:04:01]} O-O {[%emt 0:01:35]} 6. Bd2 {[%emt 0:00:37]} b6 {[%emt 0:00:54]} 7. cxd5 {[%emt 0:02:11]} exd5 {[%emt 0:00:07]} 8. Rc1 {[%emt 0:00:28] E51: Nimzo-Indian: Rubinstein: 4...0-0 5 Nf3 d5.} a6 {[%emt 0:03:32]} 9. Bd3 {[%emt 0:00:53]} Bb7 {[%emt 0:02:23]} 10. O-O {[%emt 0:00:41] The position is equal.} Nbd7 {[%emt 0:03:58]} 11. Ne5 {[%emt 0:03:54]} Nxe5 {[%emt 0:08:43]} 12. dxe5 {[%emt 0:00:26]} Nd7 {[%emt 0:00:08]} 13. Qc2 {[%emt 0:13:46] [#]} (13. Qh5 g6 14. Qh3 Nxe5 $17) 13... g6 $146 {[%emt 0:17:43]} ({Predecessor:} 13... Nxe5 14. Bxh7+ Kh8 15. f4 g6 16. fxe5 Kxh7 17. Ne4 Bxd2 18. Nf6+ Kg7 19. Qxd2 Qe7 {0-1 (54) Heinola,V (2278)-Agopov,M (2444) Helsinki 2022}) 14. f4 {[%emt 0:10:37]} Re8 {[%emt 0:14:40]} 15. Be1 {[%emt 0:05:59]} Bf8 {[%emt 0:07:06]} (15... Nc5 $14 {is superior.}) 16. Rd1 {[%emt 0:01:25]} Qe7 {[%emt 0:24:08]} 17. e4 {[%emt 0:01:41][%cal Be3e4,Be4d5][%mdl 32] White is more active.} d4 {[%emt 0:01:24]} (17... c6 $16 {was called for.}) 18. Nd5 $18 {[%emt 0:00:23]} Bxd5 {[%emt 0:02:29]} 19. exd5 {[%emt 0:00:13]} Qc5 {[%emt 0:00:36]} 20. Bf2 {[%emt 0:01:29]} Rad8 {[%emt 0:01:17]} 21. Qb3 {[%emt 0:01:18]} b5 {[%emt 0:02:24]} 22. Bb1 {[%emt 0:03:01]} Nb6 {[%emt 0:00:43]} 23. Be4 {[%emt 0:01:07]} ({Much less strong is} 23. Rxd4 $6 Rxd5 24. Re4 Qc6 $16) (23. Bxd4 $6 Qxd5 24. Qc2 Nc4 $14) 23... Nxd5 {[%emt 0:00:35]} (23... Qb4 $142) 24. Rc1 {[%emt 0:00:32][%mdl 64] Deflection.  Weighted Error Value: White=0.06 (flawless) /Black=0.21 (precise)} ({Don't take} 24. Rxd4 c6 25. Rxd5 cxd5 $18) ({Less strong is} 24. Bxd4 Qc4 $14) 1-0

[Event "SVK ECo-C Extraliga 2021-22"]
[Site "Slovakia"]
[Date "2022.06.11"]
[Round "10"]
[White "Zwardon, Vojtech"]
[Black "Piesik Piotr"]
[Result "0-1"]
[ECO "D10"]
[WhiteElo "2482"]
[BlackElo "2432"]
[Annotator "TA"]
[PlyCount "76"]
[EventDate "2021.10.21"]
[EventType "team-tourn"]
[EventCountry "SVK"]
[SourceTitle "playchess.com"]
[Source "ChessBase"]
[SourceQuality "1"]
[TimeControl "40/5400+30:1800+30"]

{[%evp 10,76,42,25,31,58,37,51,54,67,65,53,109,89,150,154,160,177,185,168,158,171,268,267,267,272,263,255,254,252,249,247,243,-10,-10,-10,-11,-45,-47,-50,-50,-50,-47,-48,-48,-69,-74,-92,-80,-92,-90,-92,-92,-93,-93,-93,-93,-102,-102,-106,-101,-106,-91,-108,-112,-109,-108,-595,-583]} 1. c4 {[%emt 0:04:49]} c6 {[%emt 0:00:36]} 2. Nc3 {[%emt 0:00:10]} d5 {[%emt 0:00:11]} 3. d4 {[%emt 0:00:15]} Nf6 {[%emt 0:00:07]} 4. cxd5 {[%emt 0:00:03]} cxd5 {[%emt 0:00:08]} 5. Bf4 {[%emt 0:00:02]} Qb6 {[%emt 0:01:22]} 6. e3 {[%emt 0:04:15]} Qxb2 {[%emt 0:02:10] D10: Slav Defence: 3 cxd5 (without early Nf3) and 3 Nc3.} 7. Bb5+ {[%emt 0:01:52]} Bd7 {[%emt 0:00:02]} 8. Bxd7+ $1 {[%emt 0:00:42]} (8. Qc1 Qxc1+ 9. Rxc1 Nc6 $15) 8... Nbxd7 {[%emt 0:00:02] White is slightly better.} ({Not} 8... Nfxd7 9. Nge2 (9. Nxd5 Na6 $14) 9... Qb4 10. Rb1 $16) 9. Nge2 {[%emt 0:00:24]} Qa3 {[%emt 0:01:19]} 10. Rb1 $1 {[%emt 0:01:32][%cal Ba1b1,Bb1b7,Bb7a7][%mdl 32]} Rc8 {[%emt 0:07:43]} ({Black should play} 10... b6 $1 $14) 11. O-O $1 $16 {[%emt 0:00:20]} a6 {[%emt 0:10:04]} (11... Nb6 $142) 12. Rxb7 {[%emt 0:01:04]} e6 {[%emt 0:00:06]} (12... Rxc3 $2 13. Nxc3 Qxc3 14. Rc7 Qxc7 15. Bxc7 $18) 13. Ra7 $1 {[%emt 0:01:16]} Bb4 {[%emt 0:06:41]} 14. Nb5 {[%emt 0:02:08]} Qxa2 {[%emt 0:01:27] [#]} 15. Nc7+ $146 {[%emt 0:05:19]} ({Predecessor:} 15. Nc1 Qc4 16. Nc7+ Kf8 17. Nxa6 Kg8 18. Nd3 Bf8 19. Qb1 Qa4 20. Be5 Qc6 21. Nb8 Nxb8 {1-0 (48) Sargent,J (2212)-Sutton,A (2176) ICCF email 2018}) 15... Rxc7 {[%emt 0:12:26]} (15... Ke7 $142) 16. Bxc7 $18 {[%emt 0:02:21]} ({Don't play} 16. Rxc7 $6 O-O 17. Nc1 Qa3 $18) 16... O-O {[%emt 0:00:31]} 17. Qd3 {[%emt 0:00:14]} a5 {[%emt 0:07:36]} 18. Rb1 {[%emt 0:01:32] And now Rxb4 would win.} Qa4 {[%emt 0:01:24]} 19. h3 {[%emt 0:01:46]} Ne4 {[%emt 0:01:25] [#]} 20. Bxa5 $1 {[%emt 0:00:51][%mdl 512]} Bxa5 {[%emt 0:00:05] [#]} 21. Qb5 {[%emt 0:00:05]} ({White has to play} 21. Qd1 $1 $18 {[%cal Rd1a4]} Qxd1+ 22. Rxd1) 21... Qxb5 $11 {[%emt 0:00:44]} 22. Rxb5 {[%emt 0:00:03] [#]} Be1 {[%emt 0:00:06]} 23. f3 {[%emt 0:00:27]} (23. Rxd7 Bxf2+) 23... Nef6 {[%emt 0:04:37]} 24. Kf1 {[%emt 0:10:29]} Bd2 {[%emt 0:00:17]} 25. Kf2 {[%emt 0:00:10] Rb2 is the strong threat.} Rb8 $1 {[%emt 0:01:07]} 26. Rxb8+ {[%emt 0:01:26]} Nxb8 {[%emt 0:00:06]} 27. Rb7 {[%emt 0:02:44]} Nfd7 {[%emt 0:02:12]} 28. Nf4 {[%emt 0:01:56]} Kf8 {[%emt 0:00:21]} 29. Nd3 {[%emt 0:00:40]} Ba5 {[%emt 0:03:26]} 30. Nc5 {[%emt 0:01:27]} Ke7 {[%emt 0:00:15]} 31. Ke2 {[%emt 0:03:10]} Bb6 {[%emt 0:01:32]} 32. Na4 {[%emt 0:00:08] [#]} Bd8 {[%emt 0:00:21]} 33. e4 {[%emt 0:01:29]} Kd6 {[%emt 0:08:38]} 34. Kd3 {[%emt 0:01:45]} Kc6 {[%emt 0:04:03]} 35. Rb1 {[%emt 0:01:33]} Be7 {[%emt 0:01:58]} 36. Nc3 {[%emt 0:02:43]} Na6 {[%emt 0:04:41]} 37. Rc1 {[%emt 0:03:33]} Nb4+ {[%emt 0:04:21]} 38. Ke3 $2 {[%emt 0:00:17][%mdl 8192]} (38. Ke2 $17 {nothing else works.} Bg5 39. Rb1) 38... Bg5+ {[%emt 0:00:16] What a bad dream for White.  Weighted Error Value: White=0.28 (precise) /Black=0.08 (flawless)} 0-1

[Event "SVK ECo-C Extraliga 2021-22"]
[Site "Slovakia"]
[Date "2022.06.11"]
[Round "10"]
[White "Kraus, Tomas"]
[Black "Hujbert, Florian"]
[Result "1-0"]
[ECO "B40"]
[WhiteElo "2472"]
[BlackElo "2396"]
[Annotator "TA"]
[PlyCount "75"]
[EventDate "2021.10.21"]
[EventType "team-tourn"]
[EventCountry "SVK"]
[SourceTitle "playchess.com"]
[Source "ChessBase"]
[SourceQuality "1"]
[TimeControl "40/5400+30:1800+30"]

{[%evp 9,75,16,15,8,8,10,12,0,-5,-12,0,0,18,32,32,28,33,17,32,30,32,19,47,0,0,0,0,0,10,0,12,0,0,0,0,-16,-20,-22,25,19,43,39,61,56,62,45,125,109,102,109,111,111,266,264,264,254,340,255,241,129,329,295,399,397,841,838,29986,29986]} 1. e4 {[%emt 0:00:22]} c5 {[%emt 0:00:17]} 2. Nf3 {[%emt 0:00:28]} e6 {[%emt 0:03:09]} 3. g3 {[%emt 0:01:08]} Nc6 {[%emt 0:00:17]} 4. Bg2 {[%emt 0:00:15]} Nf6 {[%emt 0:00:30]} 5. Qe2 {[%emt 0:03:06]} e5 {[%emt 0:03:52]} 6. O-O {[%emt 0:01:32] B40: Sicilian: 2...e6, Unusual lines.} Be7 {[%emt 0:00:07]} 7. Na3 {[%emt 0:02:07][%cal Bb1a3,Ba3c4,Bc4e3][%mdl 32]} O-O {[%emt 0:01:45]} 8. c3 {[%emt 0:03:06] The position is equal.} Re8 {[%emt 0:02:46]} 9. Nc4 {[%emt 0:01:12]} Bf8 {[%emt 0:03:12][%cal Of6e4]} 10. d3 {[%emt 0:01:29]} d6 {[%emt 0:01:43]} 11. Bg5 {[%emt 0:12:39]} h6 {[%emt 0:06:03]} 12. Bxf6 {[%emt 0:01:40]} Qxf6 {[%emt 0:02:01]} 13. Ne3 {[%emt 0:06:01]} Qd8 {[%emt 0:04:54]} 14. Nd2 {[%emt 0:08:45]} Rb8 {[%emt 0:14:11]} 15. a4 {[%emt 0:02:38]} a6 {[%emt 0:00:30]} 16. f4 {[%emt 0:08:21]} exf4 {[%emt 0:00:20] [#]} 17. gxf4 $146 {[%emt 0:01:55]} ({Predecessor:} 17. Rxf4 Be6 18. Raf1 Qa5 19. Qd1 b5 20. axb5 axb5 21. Nd5 Ne5 22. Qc2 Qa7 23. Ne3 {0-1 (30) Gajwa,A (2281)-Shyam,N (2450) Port Blair 2017}) 17... b5 {[%emt 0:09:50]} 18. axb5 {[%emt 0:11:44]} (18. Qe1 {seems wilder.} bxa4 19. Rxa4 Rxb2 20. Ndc4) 18... axb5 {[%emt 0:00:30]} 19. Qf3 {[%emt 0:00:30]} Bb7 {[%emt 0:08:12]} 20. Kh1 {[%emt 0:05:44]} Kh8 {[%emt 0:04:01]} 21. Qg3 {[%emt 0:03:28]} Ne7 {[%emt 0:01:16]} 22. d4 {[%emt 0:04:13]} cxd4 {[%emt 0:06:26]} 23. cxd4 {[%emt 0:01:36]} Nc6 {[%emt 0:02:48]} (23... Ra8 $142) 24. Nb3 $11 {[%emt 0:02:51]} Nb4 {[%emt 0:05:17]} 25. d5 {[%emt 0:04:19]} Qf6 {[%emt 0:00:30]} 26. Qe1 {[%emt 0:00:30]} Na6 {[%emt 0:05:44]} ({Weaker is} 26... Nd3 27. Qd2 Nc5 28. Nxc5 dxc5 29. e5 $16) 27. Qd2 {[%emt 0:00:49]} g6 {[%emt 0:04:16]} (27... Rbc8 $14) 28. e5 {[%emt 0:02:24]} dxe5 {[%emt 0:01:05]} 29. Ng4 $1 {[%emt 0:00:54][%csl LRe5,LRf6]} Qg7 {[%emt 0:00:40]} 30. fxe5 {[%emt 0:03:48] And now d6 would win.} h5 $2 {[%emt 0:04:16] [#]} (30... Rbd8 $16) 31. Nf6 $1 $18 {[%emt 0:00:26]} Rxe5 {[%emt 0:00:19] [#]} 32. Nd7 $1 {[%emt 0:01:26][%csl LRb8,LRe5] Pair of Knights!} Bd6 {[%emt 0:02:39]} 33. Nxb8 {[%emt 0:01:44]} Nxb8 {[%emt 0:00:05]} 34. Na5 {[%emt 0:01:29]} ({Better is} 34. Ra7 $18 Re7 35. Na5) 34... Re7 {[%emt 0:01:57] Black cannot hold the game after this.} (34... Bc8 $16 35. Nc6 Re8 36. Nxb8 Bxb8) 35. Nc6 {[%emt 0:01:00]} Bxc6 {[%emt 0:01:03]} 36. dxc6 {[%emt 0:00:04]} Qe5 {[%emt 0:01:01]} (36... Bc7 37. Rae1 Rxe1) 37. Bd5 {[%emt 0:01:34] White threatens Qh6+ and mate. Active counter play!} Bb4 {[%emt 0:00:55]} 38. Qh6+ {[%emt 0:00:27] Weighted Error Value: White=0.11 (very precise) /Black=0.53} 1-0

[Event "SVK ECo-C Extraliga 2021-22"]
[Site "Slovakia"]
[Date "2022.06.11"]
[Round "10"]
[White "Vykouk, Jan"]
[Black "Vetoshko, Volodymyr"]
[Result "1-0"]
[ECO "B11"]
[WhiteElo "2464"]
[BlackElo "2500"]
[Annotator "TA"]
[PlyCount "122"]
[EventDate "2021.10.21"]
[EventType "team-tourn"]
[EventCountry "SVK"]
[SourceTitle "playchess.com"]
[Source "ChessBase"]
[SourceQuality "1"]
[TimeControl "40/5400+30:1800+30"]

{[%evp 10,122,22,22,32,0,0,0,0,0,34,33,33,22,35,34,42,36,38,43,40,41,50,31,70,50,88,42,39,44,48,43,43,39,45,41,54,36,72,74,70,65,66,84,71,34,34,39,35,39,30,0,0,0,0,-15,0,0,0,0,0,0,0,0,8,8,10,6,18,6,31,18,31,32,65,69,72,71,72,71,71,65,113,0,101,0,24,24,24,28,63,62,77,77,188,160,388,346,914,822,845,664,493,408,29974,79,29951,29954,12797,12799,5461,79,29986,29987,29994]} 1. e4 {[%emt 0:00:06]} c6 {[%emt 0:01:00]} 2. Nf3 {[%emt 0:05:16]} d5 {[%emt 0:00:10]} 3. Nc3 {[%emt 0:01:56]} dxe4 {[%emt 0:00:42]} 4. Nxe4 {[%emt 0:00:06]} Nf6 {[%emt 0:00:08]} 5. Qe2 {[%emt 0:00:18]} Nxe4 {[%emt 0:00:17]} 6. Qxe4 {[%emt 0:00:06]} Qd5 {[%emt 0:00:07] B11: Caro-Kann: Two Knights Variation.} 7. Qh4 {[%emt 0:01:11]} Qe6+ {[%emt 0:00:30]} 8. Be2 {[%emt 0:00:13]} Qg6 {[%emt 0:00:33][%csl LRc2,LRg2] The position is equal.} 9. Qc4 {[%emt 0:13:41] [#]} Nd7 $146 {[%emt 0:09:32]} ({Don't do} 9... b5 10. Qc3 $16) ({Predecessor:} 9... Qxg2 10. Rg1 Qh3 11. Ng5 Qxh2 12. Qxf7+ Kd8 13. Rg3 h6 14. Nf3 Qh1+ 15. Bf1 Nd7 {1-0 (29) Stefanova,A (2474)-Girya,O (2457) Shaoxing 2019}) 10. O-O {[%emt 0:01:02]} Nb6 {[%emt 0:04:57]} 11. Qb3 {[%emt 0:03:47]} Qe6 {[%emt 0:12:58]} 12. Re1 {[%emt 0:00:26] And now c4 would win.} Qxb3 {[%emt 0:00:36]} 13. axb3 {[%emt 0:00:07]} Nd5 {[%emt 0:02:49]} 14. c3 {[%emt 0:01:09]} Bg4 {[%emt 0:05:37]} 15. d4 {[%emt 0:00:29]} e6 {[%emt 0:01:13]} 16. b4 {[%emt 0:00:06]} Bd6 {[%emt 0:04:19]} 17. h3 {[%emt 0:03:56]} Bh5 {[%emt 0:00:58]} 18. Bd2 {[%emt 0:02:43]} (18. b5 $16) 18... O-O $14 {[%emt 0:03:32]} 19. g4 {[%emt 0:03:55]} Bg6 {[%emt 0:00:13]} 20. Ne5 {[%emt 0:00:08]} a6 {[%emt 0:12:38]} 21. h4 {[%emt 0:09:10]} f6 {[%emt 0:02:53]} 22. Nd7 {[%emt 0:03:24]} Rfe8 {[%emt 0:04:41]} 23. Nc5 {[%emt 0:01:07]} Bxc5 {[%emt 0:11:47]} 24. bxc5 {[%emt 0:00:11]} e5 {[%emt 0:00:31]} 25. c4 {[%emt 0:00:11]} Nc7 {[%emt 0:01:09][%cal Bd5c7,Bc7e6,Be6d4][%mdl 32]} 26. dxe5 {[%emt 0:00:37]} fxe5 {[%emt 0:00:51]} 27. Bf1 {[%emt 0:00:21]} (27. h5 $5 {[%cal Rh5g6]} Bf7 28. Bf1 $16) 27... Ne6 {[%emt 0:05:04]} 28. Rxe5 {[%emt 0:05:58]} Nd4 {[%emt 0:00:06]} 29. Rxe8+ {[%emt 0:00:07]} Rxe8 {[%emt 0:00:03]} 30. Bc3 {[%emt 0:00:17]} Re4 {[%emt 0:01:29]} 31. f3 {[%emt 0:09:10]} Nxf3+ {[%emt 0:00:04]} 32. Kg2 {[%emt 0:00:12]} Ne5 {[%emt 0:03:43]} ({Much less strong is} 32... Nxh4+ 33. Kg3 $16) 33. Bxe5 {[%emt 0:00:05]} Rxe5 $11 {[%emt 0:00:03][%mdl 4096] Endgame KRB-KRB} 34. Rd1 {[%emt 0:00:44]} h5 {[%emt 0:03:24]} 35. gxh5 {[%emt 0:05:08]} Bxh5 {[%emt 0:00:36]} 36. Rd7 {[%emt 0:00:25]} a5 {[%emt 0:05:59]} 37. Rxb7 {[%emt 0:01:32]} Rxc5 {[%emt 0:00:05]} 38. Rc7 {[%emt 0:00:19]} Bg6 {[%emt 0:01:51]} 39. Kg3 {[%emt 0:00:21]} Kh7 {[%emt 0:01:01]} 40. Be2 {[%emt 0:01:04]} Bc2 {[%emt 0:01:45]} 41. Kf4 {[%emt 0:32:04]} Kh6 {[%emt 0:09:57]} 42. Re7 {[%emt 0:00:00]} Rf5+ {[%emt 0:02:13]} 43. Ke3 $1 {[%emt 0:00:00]} Rf6 {[%emt 0:03:44] Inhibits Re6.} 44. Re5 {[%emt 0:00:00]} a4 {[%emt 0:00:44]} 45. Bf3 {[%emt 0:00:00]} Rd6 {[%emt 0:01:18]} (45... g6 $14) 46. Rh5+ $16 {[%emt 0:00:00]} Kg6 {[%emt 0:01:12] [#]} 47. Rg5+ {[%emt 0:00:00]} (47. Rc5 $1 $16 {[%cal Rc5c6]} Rd3+ 48. Kf4 Rd4+ 49. Ke5 Rxh4 50. Rxc6+ Kg5 51. Rc7) 47... Kf7 {[%emt 0:00:30]} 48. Rc5 {[%emt 0:00:00]} Rd3+ {[%emt 0:00:18]} 49. Kf4 {[%emt 0:00:00]} Rb3 {[%emt 0:01:04]} 50. Rxc6 {[%emt 0:00:00]} Rxb2 {[%emt 0:00:20]} 51. Bd5+ {[%emt 0:00:00]} Ke7 {[%emt 0:00:46] [#]} (51... Kf8 $16 {might work better.}) 52. Ke5 $1 $18 {[%emt 0:00:00] Hoping for Rc7+.} a3 $2 {[%emt 0:07:34]} (52... Rb4 $16 53. Rc7+ Ke8 54. Rxg7 Bb3) 53. Rc7+ {[%emt 0:00:00]} Kd8 $2 {[%emt 0:00:17]} (53... Kf8 54. Rf7+ Kg8 55. Ra7+ Kh7) 54. Ra7 {[%emt 0:00:00] Black must now prevent Kd6.} Rb6 {[%emt 0:03:27]} 55. c5 {[%emt 0:00:00]} Rh6 {[%emt 0:00:14]} 56. Rxa3 {[%emt 0:00:00] Threatens to win with Ra7.} Rxh4 {[%emt 0:01:08]} (56... Bd1 $18 57. Ra8+ Kc7 58. Ra7+ Kc8 59. Rxg7 Ba4 60. Be6+ Kb8) 57. Ra8+ $2 {[%emt 0:00:00]} (57. Ra7 {mates} g5 58. Kd6 Rh6+ 59. Be6 (59. Ke5 Rh7 $16) 59... Be4 60. Rg7 Rxe6+ 61. Kxe6 Bg2 62. Kd6) 57... Kc7 $2 {[%emt 0:00:40][%mdl 8192]} (57... Kd7 $16) 58. Ra7+ {[%emt 0:00:00]} Kb8 {[%emt 0:00:09]} 59. Rb7+ {[%emt 0:00:00]} Kc8 {[%emt 0:00:08]} 60. Rxg7 $2 {[%emt 0:00:00]} (60. Re7 $18 {and the rest is easy. Kd6 would kill now.} Ba4 61. Rxg7) 60... Rh7 $2 {[%emt 0:00:47][%mdl 8192]} (60... Ba4 $16) 61. Rxh7 {[%emt 0:06:20]} Bd3 {[%emt 0:01:34] Weighted Error Value: White=0.31/Black=0.55} 1-0

[Event "SVK ECo-C Extraliga 2021-22"]
[Site "Slovakia"]
[Date "2022.06.11"]
[Round "10"]
[White "Simacek, Pavel"]
[Black "Balogh, Csaba"]
[Result "1/2-1/2"]
[ECO "B22"]
[WhiteElo "2463"]
[BlackElo "2586"]
[Annotator "TA"]
[PlyCount "38"]
[EventDate "2021.10.21"]
[EventType "team-tourn"]
[EventCountry "SVK"]
[SourceTitle "playchess.com"]
[Source "ChessBase"]
[SourceQuality "1"]
[TimeControl "40/5400+30:1800+30"]

{[%evp 17,38,4,0,0,13,3,13,0,17,13,26,26,26,13,16,31,16,16,16,19,19,0,0]} 1. e4 {[%emt 1:31:00]} c5 {[%emt 1:31:00]} 2. Nf3 {[%emt 0:00:30]} e6 {[%emt 0:00:30]} 3. c3 {[%emt 0:00:30]} d5 {[%emt 0:00:30]} 4. exd5 {[%emt 0:00:30]} Qxd5 {[%emt 0:00:30]} 5. Na3 {[%emt 0:00:30][%cal Bb1a3,Ba3b5,Bb5d6,Bd6c4][%mdl 32]} Nc6 {[%emt 0:00:30]} 6. d4 {[%emt 0:00:30]} Nf6 {[%emt 0:00:30]} 7. Nb5 {[%emt 0:00:30]} Qd8 {[%emt 0:00:30]} 8. dxc5 {[%emt 0:00:30]} Bxc5 {[%emt 0:00:30]} 9. Qxd8+ {[%emt 0:00:30]} Kxd8 {[%emt 0:00:30]} 10. b4 {[%emt 0:00:30][%cal Bb2b4,Bb4b5][%mdl 32] B22: Sicilian: 2 c3.} Bb6 {[%emt 0:00:30]} 11. Nd6 {[%emt 0:00:30]} (11. a4 {keeps more tension.} Ne4 12. Nd2 Bxf2+ 13. Ke2) 11... Ke7 {[%emt 0:00:30]} 12. Nc4 {[%emt 0:00:30] [#] Strongly threatening b5.} Ne4 {[%emt 0:00:30][%csl LRc3,LRf2]} 13. b5 {[%emt 0:00:30] [#] Black must now prevent Ba3+.} Nb8 $146 {[%emt 0:00:30][%cal Bc6b8,Bb8d7,Bd7c5][%mdl 32]} (13... Bxf2+ 14. Ke2 $16) ({Predecessor:} 13... Na5 14. Ba3+ Ke8 15. Nxb6 axb6 16. Bb4 Nb3 17. Rb1 Nbc5 18. a3 f6 19. Be2 e5 {0-1 (36) Srinath,R (2363)-Galyas,M (2508) Zalakaros 2018}) 14. Ng5 {[%emt 0:00:30]} Nxg5 {[%emt 0:00:30]} ({Resist} 14... Bxf2+ 15. Ke2 Nxg5 16. Ba3+ (16. Bxg5+ f6 $11) 16... Kd8 17. Kxf2 $16 (17. Rd1+ Nd7 $11)) 15. Bxg5+ {[%emt 0:00:30]} f6 {[%emt 0:00:30]} 16. Nxb6 {[%emt 0:00:30]} axb6 {[%emt 0:00:30]} 17. Be3 {[%emt 0:00:30] The position is equal.} Nd7 {[%emt 0:00:30]} 18. a4 {[%emt 0:00:30]} Ra5 {[%emt 0:00:30]} 19. c4 {[%emt 0:00:30]} Nc5 {[%emt 0:00:30] A rather calm draw.  Weighted Error Value: White=0.02 (flawless) /Black=0.04 (flawless)} 1/2-1/2